Cogmind - Beta 13 @@@ ROGUE MODE // 2024.04.16 @ 19:42:13 Player: Zach Petti Result: Destroyed by D-53 Grenadier with Mini Grenade Launcher Performance ------------- Evolutions (0) 0 Regions Visited (2) 400 Robots Destroyed (22) 110 Value Destroyed (361) 361 Prototype IDs (0) 0 Alien Tech Used (0) 0 Bonus (0) 0 TOTAL SCORE: 871 Bonus ------- None Cogmind --------- Core Integrity 0/250 Matter 300/300 Energy 87/100 System Corruption 5% Temperature Cool (8) Movement Rolling (95) Ox1 Location -10/Mines Parts ------- > --- POWER (1) -------- (None) > --- PROPULSION (2) --- Wheel > --- UTILITY (2) ------ Medium Storage Unit > --- WEAPON (2) ------- Particle Cannon Heavy Battle Rifle > --- INVENTORY (10) --- Light Ion Engine Light Treads Aluminum Leg Wheel Seismic Detector Light Armor Plating Medium Laser Small Laser Light Assault Rifle Grenade Launcher Peak State ------------ > --- POWER ------------ Light Ion Engine > --- PROPULSION ------- Wheel Wheel > --- UTILITY ---------- Medium Storage Unit Large Battery > --- WEAPON ----------- Light Assault Rifle Heavy Battle Rifle > --- INVENTORY -------- Light Treads Aluminum Leg Sensor Array Seismic Detector Light Armor Plating Medium Laser Small Laser Particle Cannon Grenade Launcher [Rating: 11] Favorites ----------- Power Light Ion Engine Engine Light Ion Engine Propulsion Aluminum Leg Leg Aluminum Leg Wheel Wheel Flight Unit Flight Unit Utility Terrain Scan Processor Device Heat Sink Storage Medium Storage Unit Processor Terrain Scan Processor Weapon Light Assault Rifle Energy Gun Medium Laser Energy Cannon Particle Cannon Ballistic Gun Light Assault Rifle Launcher Grenade Launcher Special Weapon Mining Laser Build | -11 -10 -10 ------- Run | Yrd Mat Min Slots Evolved . | . . . Power . | . . . Propulsion . | . . . Utility . | . . . Weapon . | . . . Parts Attached 31 | 9 18 4 Power 3 | 1 2 . Engine 3 | 1 2 . Core . | . . . Reactor . | . . . Propulsion 8 | 2 5 1 Treads . | . . . Leg 4 | 2 2 . Wheel 3 | . 2 1 Hover . | . . . Flight 1 | . 1 . Utility 5 | 1 3 1 Device 2 | 1 . 1 Storage 2 | . 2 . Processor 1 | . 1 . Hackware . | . . . Protection . | . . . Artifact . | . . . Weapon 15 | 5 8 2 Energy Gun 4 | 2 2 . Energy Cannon 2 | . 1 1 Ballistic Gun 5 | 2 2 1 Ballistic Cannon . | . . . Launcher 3 | . 3 . Special Weapon 1 | 1 . . Impact Weapon . | . . . Slashing Weapon . | . . . Piercing Weapon . | . . . Special Melee Weapon . | . . . Unidentified Prototypes . | . . . Parts Lost 8 | . 4 4 Power 2 | . 1 1 Propulsion 2 | . 1 1 Utility 3 | . 1 2 Weapon 1 | . 1 . Highest Loss Streak 3 | . 3 2 To Critical Strikes . | . . . Average Slot Usage (%) 85 | . 85 84 Engine 11 | . 12 7 Leg 16 | . 20 . Wheel 5 | . . 21 Device 5 | . 5 4 Storage 10 | . 6 23 Processor 9 | . 12 . Energy Gun 2 | . 3 . Energy Cannon 1 | . . 7 Ballistic Gun 11 | . 9 20 Launcher 9 | . 12 . Naked Turns . | . . . Heaviest Build 24 | 8 17 24 Greatest Support 20 | 20 20 20 Greatest Overweight (x) 5 | . 5 2 Average Overweight (x) . | . . . Largest Inventory Capacity 10 | 5 10 10 Average Capacity 7 | 5 6 10 Most Carried 10 | 5 8 10 Average Carried 5 | 3 4 8 Final Capacity 10 | 5 10 10 Final Carried 10 | 4 7 10 Class Distribution -------------------- 100% | Mutant Dominant Class ---------------- Mutant | -10/Materials Mutant | -10/Mines Resources | -11 -10 -10 ----------- Run | Yrd Mat Min Matter Collected 719 | 283 267 169 Remotely . | . . . Salvage Created 599 | 45 437 117 Parts 51 | 5 43 3 Haulers Intercepted 1 | . 1 . Recyclers Shooed 1 | . 1 . Parts Field Recycled . | . . . Retrieved Matter . | . . . Parts Self-Destructed . | . . . Prevented . | . . . Kills | -11 -10 -10 ------- Run | Yrd Mat Min Combat Hostiles Destroyed 16 | 1 8 7 Guns 8 | 1 3 4 Cannons 5 | . 2 3 AOE 3 | . 3 . Classes Destroyed 9 | 2 6 1 Worker 4 | . 3 1 Builder 2 | . 2 . Tunneler 2 | 1 1 . Hauler 1 | . 1 . Operator 1 | . 1 . Watcher 3 | . 3 . Swarmer 3 | . 3 . Grunt 6 | 1 5 . Assembled 7 | . . 7 Best Kill Streak 7 | 2 7 5 Combat Bots Only 5 | 1 3 5 Max Kills in Single Turn 3 | 1 3 1 Gunslinging . | . . . Exploded 2 | . 2 . Melee . | . . . Uniques/NPCs Destroyed . | . . . Combat | -11 -10 -10 -------- Run | Yrd Mat Min Hostile Shots Fired 95 | 3 51 41 Missed 28 | . 16 12 Damage Taken 1103 | 32 535 536 Core 270 | . 103 167 Absorbed by Shields . | . . . Core Remaining (%) 100 | 100 . . Volleys Fired 71 | 4 41 26 Largest 2 | 2 2 2 Hottest 101 | 100 90 101 Shots Fired 112 | 7 66 39 Gun 88 | 6 50 32 Cannon 14 | . 7 7 Launcher 9 | . 9 . Special 1 | 1 . . Kinetic 56 | 3 21 32 Thermal 47 | 4 36 7 Explosive 9 | . 9 . Electromagnetic . | . . . Robot Hit Streak 10 | 5 10 7 Robot Miss Streak 6 | . 5 6 Penetration Max . | . . . Secondary Targets 1 | . 1 . Max Gunslinging Chain 1 | . 1 . Shots Hit Robots 52 | 5 30 17 Core Hits 41 | 2 28 11 Critical Kills . | . . . Critical Parts Destroyed . | . . . Critical Strikes . | . . . Melee Attacks . | . . . Impact . | . . . Slashing . | . . . Piercing . | . . . Sneak Attacks . | . . . Combat Hostiles . | . . . Follow-up Attacks . | . . . Damage Inflicted 1224 | 66 842 316 Guns 557 | 66 264 227 Cannons 145 | . 62 83 Explosions 495 | . 495 . Melee . | . . . Ramming 27 | . 21 6 Kinetic 341 | 28 86 227 Thermal 361 | 38 240 83 Explosive 452 | . 452 . Electromagnetic 43 | . 43 . Impact . | . . . Slashing . | . . . Piercing . | . . . Highest Corruption 5 | . 4 5 Average Corruption 3 | . 3 4 Corruption Purged . | . . . Corruption Blocked . | . . . Effects 21 | . 16 5 Message Errors 5 | . 3 2 Matter Fused 5 | . 4 1 Heat Flow Errors 4 | . 3 1 Energy Discharges 1 | . 1 . Data Loss (minor) 3 | . 3 . Misfires 1 | . 1 . Alerts 2 | . 1 1 Overload Shots . | . . . Overflow Damage 1 | . 1 . Projectiles . | . . . Explosions 1 | . 1 . Melee . | . . . Knockbacks . | . . . Impact . | . . . Kinetic . | . . . Secondary . | . . . Self-Inflicted Damage 127 | . 124 3 Shots 3 | . 3 . Rammed 1 | . . 1 Targets Rammed 1 | . . 1 Kicked . | . . . Crushed . | . . . Highest Temperature 341 | 30 276 341 Average Temperature 88 | 14 77 124 Received Heat Transfer 357 | 18 219 120 Effects 3 | . 2 1 Interference 3 | . 2 1 Siege Activations . | . . . Robots Corrupted . | . . . Combat Hostiles . | . . . Parts Fried . | . . . Impact Corruptions . | . . . Robots Melted . | . . . Combat Hostiles . | . . . Parts Melted 3 | . 3 . Heat Transferred 853 | 111 594 148 Parts Sabotaged . | . . . Parts Stolen . | . . . Parts Stripped . | . . . Power Chain Reactions . | . . . Alert | -11 -10 -10 ------- Run | Yrd Mat Min Peak Influence 221 | 25 221 8 Initial 16 | . 16 6 Average 74 | 10 103 4 Maximum Alert Level 1 | . 1 . Low Security (%) 83 | 100 75 100 Level 1 16 | . 24 . Level 2 . | . . . Level 3 . | . . . Level 4 . | . . . Level 5 . | . . . High Security . | . . . Max Security . | . . . Squads Dispatched 1 | . 1 . Investigation 1 | . 1 . Extermination . | . . . Reinforcement . | . . . Assault . | . . . Garrison . | . . . Intercept . | . . . Searches Triggered . | . . . Construction Impeded . | . . . Haulers Reinforced . | . . . Active Scanning Responses . | . . . Cargo Convoy Interrupts . | . . . Stealth | -11 -10 -10 --------- Run | Yrd Mat Min Distress Signals . | . . . Communications Jammed . | . . . Distress Signals . | . . . Times Spotted 25 | 1 12 12 Peak Tracking Total 6 | 1 3 6 Tactical Retreats . | . . . Traps | -11 -10 -10 ------- Run | Yrd Mat Min Traps Triggered 1 | . 1 . Indirectly . | . . . Trap Hack Attempts . | . . . Triggered . | . . . Disarmed . | . . . Reprogrammed . | . . . Reused . | . . . Traps Extracted . | . . . Installed . | . . . Triggered . | . . . Machines | -11 -10 -10 ---------- Run | Yrd Mat Min Machines Disabled 2 | . 2 . Max in Single Turn 2 | . 2 . Machines Repaired . | . . . Machines Dismantled . | . . . Machines Sabotaged . | . . . Overloaded Fab Kills . | . . . Hacking | -11 -10 -10 --------- Run | Yrd Mat Min Machines Accessed 2 | . 2 . Terminals 1 | . 1 . Fabricators . | . . . Repair Stations 1 | . 1 . Recycling Units . | . . . Scanalyzers . | . . . Garrison Access . | . . . Total Hacks 4 | . 4 . Successful 2 | . 2 . Failed 2 | . 2 . Catastrophic . | . . . Database Lockouts . | . . . Manual . | . . . Terminals 3 | . 3 . Fabricators . | . . . Repair Stations 1 | . 1 . Recycling Units . | . . . Scanalyzers . | . . . Garrison Access . | . . . Terminal Hacks 2 | . 2 . Record 1 | . 1 . Alert Level 1 | . 1 . Fabricator Hacks . | . . . Repair Station Hacks . | . . . Recycling Unit Hacks . | . . . Scanalyzer . | . . . Garrison Access Hacks . | . . . Unauthorized Hacks . | . . . Terminals . | . . . Fabricators . | . . . Repair Stations . | . . . Recycling Units . | . . . Scanalyzers . | . . . Garrison Access . | . . . Data Cores Recovered . | . . . Used . | . . . Hacking Detections 2 | . 2 . Full Trace Events 1 | . 1 . Feedback Events . | . . . Feedback Blocked . | . . . Robot Schematics Acquired . | . . . Robots Built . | . . . Authchips . | . . . Time . | . . . Total Robot Build Rating . | . . . Part Schematics Acquired . | . . . Parts Built . | . . . Authchips . | . . . Time . | . . . Total Part Build Rating . | . . . Parts Repaired . | . . . Time . | . . . Parts Recycled . | . . . Recycled Matter . | . . . Retrieved Matter . | . . . Retrieved Components . | . . . Parts Scanalyzed . | . . . Part Schematics Acquired . | . . . Parts Damaged . | . . . Bothacking | -11 -10 -10 ------------ Run | Yrd Mat Min Used RIF Installer . | . . . Robots Hacked . | . . . Non-combat . | . . . Combat . | . . . Robot Hacks Applied . | . . . Relay Couplers Released . | . . . Fabnet Peak Effective % . | . . . Robots Rewired . | . . . Allies Hacked . | . . . Hacks Repelled . | . . . Allies | -11 -10 -10 -------- Run | Yrd Mat Min Total Allies . | . . . Largest Group . | . . . Highest-Rated Group . | . . . Highest-Rated Ally . | . . . Total Orders . | . . . Ally Attacks . | . . . Total Damage . | . . . Kills . | . . . Allies Corrupted . | . . . Allies Melted . | . . . Intel | -11 -10 -10 ------- Run | Yrd Mat Min Robot Analysis Total . | . . . Derelict Logs Recovered 1 | . . 1 Drone Launches . | . . . Drone Recoveries . | . . . Exploration | -11 -10 -10 ------------- Run | Yrd Mat Min Turns Passed 1548 | 183 1079 286 Spaces Moved 928 | 130 573 225 Core 45 | 27 18 . Treads . | . . . Legs 616 | 103 513 . Wheels 255 | . 30 225 Hover . | . . . Flight 12 | . 12 . Fastest Speed 50 | 50 80 80 Average Speed 135 | 105 158 94 Slowest Speed 300 | 120 300 110 Overloaded Moves . | . . . Propulsion Burnouts . | . . . Robots Hopped . | . . . Cave-ins Triggered . | . . . Exploration Rate (%) 48 | 10 71 64 Regions Visited 2 Branch Regions 1 Pre-discovered Areas . | . . . Known Exits Taken . | . . . Unknown Exits Taken 2 | 1 1 . Scrap Searched . | . . . Spaces Dug 1 | 1 . . Terrain Destroyed 69 | 1 61 7 Melee . | . . . Projectile 8 | 1 . 7 AOE 61 | . 61 . Terrain Rammed 6 | . 6 . Walls Destroyed . | . . . Machines Disabled . | . . . Actions | -11 -10 -10 --------- Run | Yrd Mat Min Total 1101 | 166 674 261 Wait 27 | 13 14 . Move 926 | 129 572 225 Hop . | . . . Pick Up 28 | 10 13 5 Fast Attach 3 | . 3 . Attach 14 | 7 5 2 Detach 1 | 1 . . Swap 14 | 2 10 2 Drop 10 | . 10 . Fire 71 | 4 41 26 Melee . | . . . Ram 7 | . 6 1 Kick . | . . . Crush . | . . . Escape Stasis . | . . . Rewire . | . . . Trap . | . . . Miscellaneous . | . . . Route ------- -11/Scrapyard -10/Materials (discovered 3 exits: [*Mat] / [*Min x2]) -10/Mines (discovered 1 exit: [*Mat]) History --------- Turn | Location | Event 2 | -11/Scrapyard | Met Revision 17 91 | -11/Scrapyard | Discovered new exit (range 8) 184 | -11/Scrapyard | Entered Materials 306 | -10/Materials | Build established: Mutant 565 | -10/Materials | Discovered new exit (range 16) 663 | -10/Materials | Lost 3 parts (1p1n1u) 815 | -10/Materials | Discovered new exit (range 5) 1123 | -10/Materials | Discovered new exit (range 15) 1263 | -10/Materials | Entered Mines 1274 | -10/Mines | A weapon hastily lodged in a ceiling crevice suddenly fell to the ground 1319 | -10/Mines | Learned Materials emergency access door positions 1372 | -10/Mines | Assembled infested the area 1413 | -10/Mines | Core integrity fell below 50% 1431 | -10/Mines | Core integrity fell below 20% 1514 | -10/Mines | Discovered new exit (range 5) 1549 | -10/Mines | Destroyed by D-53 Grenadier with Mini Grenade Launcher Last Messages --------------- U-05 Engineer lays Concrete. K-01 Serf destroyed. U-05 Engineer lays Concrete. U-05 Engineer builds a Wall. The unstable cave ceiling collapses. Extracted 47 matter. Acquired 23 matter. Acquired Lgt. Ion Engine. U-05 Engineer builds a Wall. U-05 Engineer lays Concrete. U-05 Engineer builds a Wall. Acquired 17 matter. U-05 Engineer lays Concrete. U-05 Engineer builds a Wall. EXIT=FOUND =M02C H/VUC,L0IOVAMRMOE>,Y& Sensor Array destroyed. K-01 Serf destroyed. [Achievement: First Step to Greatness] Map ----- +----------------------------------------------------+ | """ < ## # ##???????????# ##?????????# | | """ ## #???????????## ##?########### | | # ## ##????????????####???#" | | # ## #????????????????????## | | # ###### # #?# #?????????????????????# ##### ## | | # #???# # #??##?????????????????????# ????# #? | | # ##??# #?????????????????????????# ?????# ? | | # ##?# #????????????????????????? ?????# ## | | #### # #???????????????????????? ??????# | | #### #??????????????????????? ##??????# | | ##?????????????????????##????????# | | ###### ????????????????????????# | | #???????????????????????# | | ????????????????????????# | | ###########???????????????????????#### | | #??????????????????????????????####### | | #??????????????????????????????# | | ##???????####??????????????????# ##### | | #### ######### ###??????????????????????# | | ???######### ##?????????????????????# | | ???????????## #?????????????????????# | | ????????????######### ##????????????????????# | | ????????????????????## ##???????????????????# | | ?????????????????????# * #???????????????????# | | ??????????????????????# % #???????????????????? | | ??????????????????????# @ #????????????????????? | | ??????????????????????# #???????????????????? | | ??????????????????????### #???????????????????? | | ???????????????????????? ###???????????????????? | | ???????????????????????? ?????????????????????? | | ???????????????????????? ????????????????????# | | ????????????????????????k ????????????????????? | | ???????????????????????## ???????????????????? | | ????????????????????????#; ??????????????????? | | ?????????????????????????#dd ?????????????????? | | ?????????????????????????? ##????????????????? | | ?????????????????????????? ##?????????????????? | | ?????????????????????????? ###?????????????????? | | ?????????????????????????? ?????????????????????" | | ?????????????????????????? ??????????????????????? | | ??????????????????????????#??????????????????????? | | ?????????????????????????????????????????????????? | | ?????????????????????????????????????????????????? | | ?????????????????????????????????????????????????? | | ?????????????????????????????????????????????????? | | ?????????????????????????????????????????????????? | | ?????????????????????????????????????????????????? | | ?????????????????????????????????????????????????? | | ?????????????????????????????????????????????????? | | ?????????????????????????????????????????????????? | +----------------------------------------------------+ Best States ------------- Heat Dissipation 35 Energy Generation 10 Energy Capacity 325 Matter Stores 300 Matter Capacity 300 Sight Range 16 Robot Scan Range 14 Terrain Scan Density 85 Evasion (%) 55 Item Schematics ----------------- None Robot Schematics ------------------ None Fabricated ------------ Nothing Alien Tech Used ----------------- None Achievements -------------- Crack Shot Dramatic Entrance First Step to Greatness Loot Pinata Storm Trooper Challenges ------------ None Game ------ Seed NetworkFlightInterrupter Manual? 0 Play Time 00:21:23 Cumulative 0.3 hours Start 2024.04.16 @ 19:23:01 End 2024.04.16 @ 19:42:13 Sessions 1 Manual Loads 0 Difficulty Rogue Special Mode None Game No. 1 Rogue 1 Adventurer 0 Explorer 0 Win Type - Total 0 Types 0/0/0/0/0/0/0/0/0 Lore% 0 Gallery% 2 Achievement% 1 Wizard Run 0 Options --------- Layout 1 ASCII 0 Keyboard 0 Movement Mouse Keybinds 0 Fullscreen 2 Font 32/SmallcapsGlow Map View 50x35 Zoom Use 0% Tactical HUD 0 Map Filters NONE Filters NONE Steam 1 RUN: 32aa8b23-b824-43ba-8cba-42f220b1876d